[Event "NOR-ch Youth 2019"]
[Site "Skien"]
[Date "2019.11.08"]
[Round "2.14"]
[White "Tunsjo, Axel"]
[Black "Skaar, Ben Samuel Groth"]
[Result "1-0"]
[ECO "B50"]
[WhiteElo "2038"]
[BlackElo "1475"]
[Annotator "NA RC"]
[PlyCount "67"]
[EventDate "2019.11.08"]
[EventType "swiss"]
[EventCountry "NOR"]
[SourceTitle "playchess.com"]
[Source "ChessBase"]
[SourceQuality "1"]
[TimeControl "2400+10"]

{[%evp 18,67,-25,-73,-69,-116,-68,32767,-79,-106,-72,-68,-65,-79,-56,-57,-47,32767,-15,-44,-22,-30,0,0,6,-16,-18,-11,21,-33,16,-20,-33,-141,126,106,122,42,90,-43,413,383,539,32767,32767,32767,32767,32767,32767,32767,29998,29999]} 1. e4 {[%emt 0:00:00]} c5 {[%emt 0:00:00]} 2. Nf3 {[%emt 0:00:00]} Nc6 {[%emt 0:00:00]} 3. b3 {[%emt 0:00:40]} d6 {[%emt 0:00:36]} 4. Bb2 {[%emt 0:00:05]} Nf6 {[%emt 0:00:06]} 5. Nc3 {[%emt 0:00:32]} g6 {[%emt 0:00:54]} 6. Bc4 {[%emt 0:03:18] B50: Sicilian: 2...d6, Miscellaneous} (6. Nd5 e5 7. Nxf6+ Qxf6 8. c3 Bg7 9. a3 O-O 10. b4 Re8 11. Bc4 Be6 12. d3 Rad8 13. Bc1 h6 14. Bxe6 Qxe6 {1-0 (50) Firman,N (2516)-Libiszewski,F (2523) Porto Rio 2015}) 6... Bg7 {[%emt 0:00:44]} 7. h3 {[%emt 0:00:17]} Bd7 {[%emt 0:00:12]} 8. Qe2 $146 {[%emt 0:00:31]} ({Predecessor:} 8. d4 cxd4 9. Nxd4 O-O 10. O-O Nxd4 11. Qxd4 Bc6 12. Nd5 Nh5 13. Qe3 Bxb2 14. Rad1 Bg7 15. g4 Nf6 16. Nc3 Qc7 17. g5 Nh5 18. f4 Qb6 19. Rd3 Qxe3+ 20. Rxe3 Bd4 {0-1 (20) Perafan,J-Lescano,T La Pampa 2015}) 8... a6 {[%emt 0:00:48]} 9. a4 {[%emt 0:00:03]} Rc8 {[%emt 0:04:18]} (9... O-O $17) 10. O-O {[%emt 0:00:11]} (10. Nd5 $1 $11) 10... O-O {[%emt 0:00:03]} 11. Rad1 {[%emt 0:01:48]} Re8 {[%emt 0:01:47]} 12. Rfe1 {[%emt 0:00:38]} Nh5 {[%emt 0:04:35]} 13. Qf1 {[%emt 0:04:59]} Nf4 {[%emt 0:03:15]} 14. Rc1 {[%emt 0:03:52]} Ne6 {[%emt 0:07:17]} 15. Nd1 {[%emt 0:00:46]} Ned4 {[%emt 0:00:50]} 16. Nxd4 {[%emt 0:00:12]} Nxd4 {[%emt 0:00:03]} 17. c3 {[%emt 0:00:10]} Ne6 {[%emt 0:00:50]} 18. f4 {[%emt 0:01:40]} (18. Bxe6 $5 fxe6 19. Ne3 $15) 18... Bh6 {[%emt 0:02:49]} (18... b5 $5 19. axb5 axb5 $15) 19. g3 {[%emt 0:00:59]} Rf8 {[%emt 0:01:01]} 20. Ne3 {[%emt 0:00:14]} Rb8 {[%emt 0:01:04]} 21. d4 {[%emt 0:01:55]} b5 {[%emt 0:02:00]} 22. axb5 {[%emt 0:00:25]} Bxb5 {[%emt 0:00:01]} 23. Rcd1 {[%emt 0:02:55]} Rb7 {[%emt 0:06:05]} (23... cxd4 $15 24. cxd4 Bxc4 25. Qxc4 Qb6) 24. Ng4 {[%emt 0:00:56]} Bg7 {[%emt 0:00:29]} 25. f5 {[%emt 0:00:06]} (25. Bc1 $11 {keeps the balance.}) 25... Nc7 $2 {[%emt 0:00:30]} (25... Bxc4 $17 {stays on course.} 26. Qxc4 {[%mdl 64] Double Attack} Ng5) 26. dxc5 {[%emt 0:00:11]} Ne8 {[%emt 0:00:43]} 27. cxd6 {[%emt 0:00:29]} Nxd6 {[%emt 0:00:20]} 28. Qf2 {[%emt 0:03:09]} (28. Bxb5 $14 Qb6+ 29. Kh2 Nxb5 30. e5 gxf5 31. Qxf5) 28... Qb8 $18 {[%emt 0:00:30] [#]} (28... Bxc4 $11 29. f6 exf6 30. bxc4 Nxe4 31. Rxd8 Nxf2 32. Rxf8+ Bxf8 33. Nxf6+ Kg7 34. Ne8+ Kh8 35. Kxf2 Rxb2+ 36. Ke3 Rh2) 29. Bd5 $1 {[%emt 0:00:22]} Rc7 {[%emt 0:00:17]} 30. c4 {[%emt 0:00:26]} Bc6 {[%emt 0:00:27]} 31. Bxg7 {[%emt 0:00:09]} Kxg7 {[%emt 0:00:01]} 32. f6+ {[%emt 0:00:04]} Kh8 {[%emt 0:00:56]} 33. fxe7 {[%emt 0:00:03]} Re8 {[%emt 0:00:12]} 34. Qf6+ {[%emt 0:00:03] Double Attack} 1-0

[Event "NOR-ch Youth 2019"]
[Site "Skien"]
[Date "2019.11.08"]
[Round "2.15"]
[White "Skauen, Thomas Kirkholm"]
[Black "Eliseev, Sergey"]
[Result "0-1"]
[ECO "A36"]
[WhiteElo "1439"]
[BlackElo "1911"]
[Annotator "NA RC"]
[PlyCount "156"]
[EventDate "2019.11.08"]
[EventType "swiss"]
[EventCountry "NOR"]
[SourceTitle "playchess.com"]
[Source "ChessBase"]
[SourceQuality "1"]
[TimeControl "2400+10"]

{[%evp 9,156,0,0,11,32767,32767,32767,32767,32767,32767,32767,32767,32767,-18,-19,-20,-4,-24,0,0,0,0,-3,0,0,0,0,0,0,-80,-83,-69,-74,-74,-73,-89,-79,-105,-111,-102,-110,32767,32767,-143,-156,-154,-145,-137,-158,-364,-101,-107,-106,-100,-96,-96,-86,32767,32767,32767,32767,32767,-159,-236,-196,-202,-224,-190,32767,32767,32767,32767,32767,32767,32767,32767,32767,32767,32767,32767,32767,32767,32767,32767,32767,32767,32767,-287,-175,32767,32767,32767,32767,32767,32767,-77,-41,-295,-343,32767,32767,32767,32767,32767,-625,-689,-887,-1270,-4562,-1169,-5612,-7427,-8336,-3485,-29967,-11608,-29969,-29968,-29975,-29971,32767,32767,32767,32767,32767,32767,32767,-29980,-29983,-29981,-29981,-29985,-29983,-29983,-29984,-29985,-27996,-29986,-29987,-29987,-27997,-29988,32767,32767,32767,32767,-29984,32767,-27999]} 1. c4 {[%emt 0:00:00]} c5 {[%emt 0:00:00]} 2. Nc3 {[%emt 0:00:00]} Nc6 {[%emt 0:00:05]} 3. g3 {[%emt 0:00:08]} g6 {[%emt 0:00:02]} 4. Bg2 {[%emt 0:00:10]} Bg7 {[%emt 0:00:02]} 5. e3 {[%emt 0:00:37]} e6 {[%emt 0:00:09]} 6. Nge2 {[%emt 0:00:11]} Nge7 {[%emt 0:00:29]} 7. O-O {[%emt 0:00:30]} O-O {[%emt 0:00:31]} 8. a3 {[%emt 0:01:34]} d5 {[%emt 0:03:31]} 9. cxd5 {[%emt 0:00:27]} Nxd5 {[%emt 0:00:02]} 10. Nxd5 {[%emt 0:01:14] A36: Symmetrical English vs ...g6: 4 Bg2 Bg7} exd5 {[%emt 0:00:01]} 11. d4 {[%emt 0:00:18]} cxd4 $1 {[%emt 0:01:19]} 12. Nxd4 {[%emt 0:00:33]} Nxd4 {[%emt 0:00:02]} 13. exd4 {[%emt 0:00:13]} Be6 {[%emt 0:01:20]} (13... Qb6 14. Bxd5 Bxd4 {½-½ (14) Vegh,E (2274)-Farago,S (2264) Budapest 2016}) 14. Be3 {[%emt 0:00:22]} Qb6 $146 {[%emt 0:01:48]} ({Predecessor:} 14... Rc8 15. Qb3 Rc4 16. Rfd1 Qd7 17. Rac1 Rfc8 18. Rxc4 dxc4 19. Qxb7 Qxb7 20. Bxb7 {½-½ (45) Veelders,W (1484)-Hartmann,E (1732) Chemnitz 2009}) 15. Qd2 {[%emt 0:01:20]} Rfc8 {[%emt 0:02:26]} 16. Rfc1 {[%emt 0:00:47]} Rc6 {[%emt 0:00:44]} 17. Rxc6 {[%emt 0:01:43]} bxc6 {[%emt 0:01:55]} 18. Rc1 {[%emt 0:03:04]} a5 {[%emt 0:02:02]} 19. b4 {[%emt 0:02:59]} (19. h4 $11 {remains equal.}) 19... axb4 {[%emt 0:00:38]} 20. Qxb4 {[%emt 0:00:14]} Qxb4 {[%emt 0:01:14]} 21. axb4 {[%emt 0:00:04]} Ra4 {[%emt 0:03:25]} 22. Rb1 {[%emt 0:09:55]} Bf8 {[%emt 0:04:56]} 23. Bd2 {[%emt 0:07:56]} Bf5 {[%emt 0:02:33]} 24. Rc1 {[%emt 0:04:24]} Bxb4 {[%emt 0:00:20]} 25. Bxb4 {[%emt 0:01:33]} Rxb4 {[%emt 0:00:03]} 26. Kf1 {[%emt 0:01:17]} Bd3+ {[%emt 0:06:46]} 27. Ke1 {[%emt 0:00:54]} Bb5 {[%emt 0:00:13]} 28. Rd1 {[%emt 0:00:27]} Kf8 {[%emt 0:01:41]} 29. Bf1 $2 {[%emt 0:00:41] [#]} (29. Rd2 {was worth a try.}) 29... Bxf1 $2 {[%emt 0:00:02]} (29... Ba4 $1 $19 {[%cal Ra4d1] is more deadly.} 30. Rc1 Rxd4) 30. Kxf1 {[%emt 0:00:09]} Ke7 {[%emt 0:00:43]} 31. Ke2 {[%emt 0:00:43]} Kd6 {[%emt 0:01:20]} 32. Ke3 {[%emt 0:00:11]} Kc7 {[%emt 0:02:27]} 33. f4 {[%emt 0:00:34]} Rb3+ {[%emt 0:00:07]} 34. Kf2 {[%emt 0:00:01]} Rb2+ {[%emt 0:00:01]} 35. Kg1 {[%emt 0:00:02]} Rb4 {[%emt 0:00:22]} 36. Kf1 {[%emt 0:00:06]} Kb6 {[%emt 0:00:10]} 37. Rd2 {[%emt 0:00:17]} Kb5 {[%emt 0:00:19]} 38. Kg2 {[%emt 0:00:05]} Rc4 {[%emt 0:01:05]} 39. Kh3 {[%emt 0:00:04]} f5 {[%emt 0:00:17]} 40. g4 {[%emt 0:00:12]} fxg4+ {[%emt 0:00:17]} 41. Kxg4 {[%emt 0:00:01]} Kb4 {[%emt 0:00:01]} 42. Kg5 {[%emt 0:00:09]} Rc3 {[%emt 0:00:32]} 43. h4 {[%emt 0:00:26]} Rh3 {[%emt 0:00:19]} 44. Rc2 {[%emt 0:00:11]} Kb5 {[%emt 0:00:05]} 45. Rc5+ {[%emt 0:00:02]} Kb6 {[%emt 0:00:03]} 46. Rc2 $1 $11 {[%emt 0:00:06]} Rd3 {[%emt 0:00:06]} 47. Rf2 {[%emt 0:00:23]} Rh3 {[%emt 0:00:19]} 48. Rd2 $2 {[%emt 0:00:12]} Rh1 {[%emt 0:00:05]} (48... Rg3+ $142 49. Kh6 Rh3 50. Rb2+ Kc7 51. Kxh7 Rxh4+ {[%mdl 64] Double Attack} 52. Kxg6 Rxf4) 49. Rb2+ {[%emt 0:00:06]} Ka6 {[%emt 0:00:10]} 50. Rc2 {[%emt 0:00:13]} Kb5 {[%emt 0:00:01]} 51. Rc5+ {[%emt 0:00:06]} Kb6 {[%emt 0:00:02]} 52. Rc2 {[%emt 0:00:06]} Rg1+ $2 {[%emt 0:00:57]} (52... Rd1 $19 53. h5 Rf1) 53. Kh6 $2 {[%emt 0:00:05]} (53. Kf6 $17) 53... Rg4 {[%emt 0:00:01]} 54. Kxh7 {[%emt 0:00:37]} Rxh4+ {[%emt 0:00:01]} 55. Kxg6 {[%emt 0:00:01]} Rxf4 {[%emt 0:00:01]} 56. Rd2 {[%emt 0:00:01]} Kb5 {[%emt 0:00:15]} 57. Kg5 {[%emt 0:00:01]} Rf1 {[%emt 0:00:11]} 58. Kg4 {[%emt 0:00:21]} Kc4 {[%emt 0:00:07]} 59. Rc2+ {[%emt 0:00:10]} Kxd4 {[%emt 0:00:04]} 60. Rxc6 {[%emt 0:00:01]} Kd3 {[%emt 0:00:04]} 61. Ra6 {[%emt 0:00:10]} d4 {[%emt 0:00:10]} 62. Rd6 {[%emt 0:00:15]} Ke3 {[%emt 0:00:07]} 63. Re6+ {[%emt 0:00:03]} Kd2 {[%emt 0:00:02]} 64. Rd6 {[%emt 0:00:19]} d3 {[%emt 0:00:01]} 65. Kg3 {[%emt 0:00:07]} Rf8 {[%emt 0:00:14]} 66. Rd7 {[%emt 0:00:23]} Ke2 {[%emt 0:00:03]} 67. Re7+ {[%emt 0:00:03]} Kd1 {[%emt 0:00:01]} 68. Rd7 {[%emt 0:00:13]} d2 {[%emt 0:00:02]} 69. Rc7 {[%emt 0:00:10]} Rf6 {[%emt 0:00:31]} 70. Re7 {[%emt 0:00:17]} Rf5 {[%emt 0:00:15]} 71. Kg4 {[%emt 0:00:07]} Rc5 {[%emt 0:00:15]} 72. Ra7 {[%emt 0:00:19]} Kc2 {[%emt 0:00:07]} 73. Ra2+ {[%emt 0:00:07]} Kd3 {[%emt 0:00:02]} 74. Ra3+ {[%emt 0:00:12]} Rc3 {[%emt 0:00:12]} 75. Ra1 {[%emt 0:00:13]} Rc1 {[%emt 0:00:02]} 76. Ra3+ {[%emt 0:00:01]} Kc4 {[%emt 0:00:07]} 77. Ra4+ {[%emt 0:00:09]} Kc3 {[%emt 0:00:03]} 78. Ra3+ {[%emt 0:00:09]} Kb2 {[%emt 0:00:03]} 0-1

[Event "NOR-ch Youth 2019"]
[Site "Skien"]
[Date "2019.11.08"]
[Round "2.16"]
[White "Olsen, William Alexander"]
[Black "Fiskaaen, Martin Holten"]
[Result "1-0"]
[ECO "D13"]
[WhiteElo "1842"]
[BlackElo "1190"]
[Annotator "NA RC"]
[PlyCount "113"]
[EventDate "2019.11.08"]
[EventType "swiss"]
[EventCountry "NOR"]
[SourceTitle "playchess.com"]
[Source "ChessBase"]
[SourceQuality "1"]
[TimeControl "2400+10"]

{[%evp 12,100,43,-8,-8,0,45,48,49,0,119,110,116,107,115,118,112,105,106,32767,87,81,123,93,93,93,109,89,90,84,95,76,85,73,87,58,105,107,32767,32767,77,76,85,75,167,166,166,36,32767,32767,32767,97,100,98,102,105,129,115,147,145,150,32767,32767,32767,32767,32767,32767,32767,32767,32767,32767,32767,32767,32767,32767,1921,12843,29963,29977,29951,29969,32767,32767,12847,12849,12847,12847,29991,29991,12848,29990]} 1. Nf3 {[%emt 0:00:00]} d5 {[%emt 0:00:00]} 2. c4 {[%emt 0:00:00]} c6 {[%emt 0:00:44]} 3. cxd5 {[%emt 0:00:09]} cxd5 {[%emt 0:00:12]} 4. d4 {[%emt 0:00:04]} Nf6 {[%emt 0:01:53]} 5. Nc3 {[%emt 0:00:06]} Nc6 {[%emt 0:02:24]} 6. Bf4 {[%emt 0:01:20]} Qb6 {[%emt 0:06:01]} 7. Qb3 {[%emt 0:04:45]} Qxb3 {[%emt 0:05:11] D13: Slav Defence: Exchange variation without ...Bf5} 8. axb3 {[%emt 0:00:01]} a6 {[%emt 0:12:05]} (8... e6 $11 9. e3 Bb4 10. Bd3 Bd7 11. Ke2 Ke7 12. h3 Rhc8 13. g4 {0-1 (64) Chigaev,M (2531)-Bai,J (2544) Groningen 2016}) 9. Nb5 {[%emt 0:03:38]} Kd7 $1 {[%emt 0:08:00]} 10. e3 $146 {[%emt 0:02:10]} ({White should play} 10. Ne5+ $1 $14 Nxe5 11. dxe5) ({Predecessor:} 10. Ng5 e6 11. e3 Bb4+ 12. Nc3 {1-0 (22) Giudici,A (1999)-Porzio,M (1901) Asti 2009}) 10... Nh5 {[%emt 0:01:39]} (10... e6 $11) 11. Nc7 {[%emt 0:01:31] Double Attack} Ra7 {[%emt 0:00:54]} 12. Nxd5 {[%emt 0:00:08]} Nxf4 {[%emt 0:00:21]} 13. Nxf4 {[%emt 0:00:32]} e6 {[%emt 0:00:21]} 14. Be2 {[%emt 0:00:22]} Bb4+ {[%emt 0:00:17]} 15. Kf1 {[%emt 0:00:30]} Bd6 {[%emt 0:01:31]} 16. Nd3 {[%emt 0:00:02]} f6 {[%emt 0:00:24]} 17. g3 {[%emt 0:02:09]} Ke7 {[%emt 0:00:31]} 18. Kg2 {[%emt 0:00:25]} Rd8 {[%emt 0:00:06]} 19. Rhd1 {[%emt 0:00:12]} Nb4 {[%emt 0:00:13]} 20. Nxb4 {[%emt 0:01:03]} Bxb4 {[%emt 0:00:03]} 21. Rac1 {[%emt 0:00:29]} Bd6 {[%emt 0:00:08]} 22. e4 {[%emt 0:00:49]} e5 {[%emt 0:00:28]} 23. Rd3 {[%emt 0:01:12]} Bd7 {[%emt 0:00:10]} 24. dxe5 {[%emt 0:00:42]} fxe5 {[%emt 0:00:12]} 25. Nd2 {[%emt 0:00:43]} Bb5 {[%emt 0:00:03]} 26. Nc4 {[%emt 0:00:03]} Bxc4 {[%emt 0:00:14]} 27. bxc4 {[%emt 0:01:32]} Raa8 {[%emt 0:00:07]} (27... Bc5 $16) 28. c5 {[%emt 0:00:39]} Bc7 {[%emt 0:00:01]} 29. c6 {[%emt 0:00:30]} ({White should try} 29. Rd5 $18) 29... bxc6 {[%emt 0:00:13]} 30. Rxc6 {[%emt 0:00:10]} Rxd3 {[%emt 0:00:02]} 31. Bxd3 {[%emt 0:00:31]} Kd7 {[%emt 0:00:01]} 32. Rxa6 {[%emt 0:00:28]} Rxa6 {[%emt 0:00:01]} 33. Bxa6 {[%emt 0:00:51]} Bb6 {[%emt 0:00:11]} 34. f4 {[%emt 0:00:25]} Kd6 {[%emt 0:00:18]} 35. Kf3 {[%emt 0:00:08]} Bd4 {[%emt 0:00:23]} 36. b3 {[%emt 0:00:10]} exf4 {[%emt 0:00:04]} 37. gxf4 {[%emt 0:00:04]} Bg1 {[%emt 0:00:06]} 38. h4 {[%emt 0:00:20]} Bc5 {[%emt 0:00:13]} 39. Bc4 {[%emt 0:00:13]} Bb4 {[%emt 0:00:14]} 40. e5+ {[%emt 0:00:07]} Ke7 {[%emt 0:00:05]} 41. Ke4 {[%emt 0:00:07]} Be1 {[%emt 0:00:07]} 42. h5 {[%emt 0:00:05]} Bd2 {[%emt 0:00:06] [#]} 43. h6 $1 {[%emt 0:02:47]} gxh6 {[%emt 0:00:29]} 44. f5 {[%emt 0:00:05]} h5 {[%emt 0:00:19]} 45. f6+ {[%emt 0:00:14]} Kf8 {[%emt 0:00:09]} 46. e6 {[%emt 0:00:16]} Bb4 {[%emt 0:00:10]} 47. Kd5 {[%emt 0:00:43]} h4 {[%emt 0:00:06]} 48. Kc6 {[%emt 0:00:01]} h3 {[%emt 0:00:10]} 49. Kd7 {[%emt 0:00:08]} h2 {[%emt 0:00:10]} 50. Bd5 $18 {[%emt 0:00:04]} h1=Q {[%emt 0:00:19]} 51. Bxh1 {[%emt 0:00:10]} h5 {[%emt 0:00:01]} 52. Bd5 {[%emt 0:00:14]} h4 {[%emt 0:00:02]} 53. e7+ {[%emt 0:00:06]} Bxe7 {[%emt 0:00:09]} 54. fxe7+ {[%emt 0:00:07]} Kg7 {[%emt 0:00:05]} 55. e8=Q {[%emt 0:00:13]} h3 {[%emt 0:00:08]} 56. Be4 {[%emt 0:00:29]} Kf6 {[%emt 0:00:17]} 57. Qe7# {[%emt 0:00:15]} 1-0

[Event "NOR-ch Youth 2019"]
[Site "Skien"]
[Date "2019.11.08"]
[Round "2.17"]
[White "Skjelbred, Marius Hjemsater"]
[Black "Digernes, Mikael"]
[Result "1/2-1/2"]
[ECO "C54"]
[WhiteElo "1166"]
[BlackElo "1715"]
[Annotator "NA RC"]
[PlyCount "72"]
[EventDate "2019.11.08"]
[EventType "swiss"]
[EventCountry "NOR"]
[SourceTitle "playchess.com"]
[Source "ChessBase"]
[SourceQuality "1"]
[TimeControl "2400+10"]

1. e4 {[%emt 0:00:00]} e5 {[%emt 0:00:00]} 2. Nf3 {[%emt 0:00:00]} Nc6 {[%emt 0:00:00]} 3. Bc4 {[%emt 0:00:00]} Nf6 {[%emt 0:00:06]} 4. d3 {[%emt 0:00:06]} Bc5 {[%emt 0:00:13]} 5. O-O {[%emt 0:00:23]} d6 {[%emt 0:00:25]} 6. h3 {[%emt 0:00:12]} h6 {[%emt 0:00:11]} 7. c3 {[%emt 0:00:36]} O-O {[%emt 0:01:03]} 8. b4 {[%emt 0:01:19]} Bb6 {[%emt 0:00:47]} 9. Ba3 {[%emt 0:00:45]} Re8 {[%emt 0:04:03]} 10. Re1 {[%emt 0:00:43]} Ne7 {[%emt 0:01:03]} 11. Bb3 {[%emt 0:02:41]} Ng6 {[%emt 0:01:21]} 12. Bc1 {[%emt 0:02:28]} Be6 {[%emt 0:05:36]} 13. Na3 {[%emt 0:01:58]} Bxb3 {[%emt 0:03:29]} 14. Qxb3 {[%emt 0:00:23]} Nh5 {[%emt 0:00:25]} 15. Qc2 {[%emt 0:04:25]} Ngf4 {[%emt 0:01:22]} 16. Bxf4 {[%emt 0:03:04]} Nxf4 {[%emt 0:00:54]} 17. Rad1 {[%emt 0:01:11]} Qf6 {[%emt 0:01:49]} 18. Nc4 {[%emt 0:02:53]} Nxh3+ {[%emt 0:01:13]} 19. gxh3 {[%emt 0:01:15]} Qxf3 {[%emt 0:01:09]} 20. Nxb6 {[%emt 0:01:21]} axb6 {[%emt 0:01:16]} 21. Re3 {[%emt 0:00:29]} Rxa2 {[%emt 0:02:12]} 22. Rxf3 {[%emt 0:02:07]} Rxc2 {[%emt 0:00:02]} 23. c4 {[%emt 0:00:06]} b5 {[%emt 0:01:49]} 24. cxb5 {[%emt 0:01:44]} Rb2 {[%emt 0:01:16]} 25. Rc1 {[%emt 0:00:42]} Rxb4 {[%emt 0:04:42]} 26. Rxc7 {[%emt 0:01:00]} Rxb5 {[%emt 0:05:30]} 27. Rfxf7 {[%emt 0:00:27]} Kh8 {[%emt 0:01:23]} 28. Kf1 {[%emt 0:00:48]} Rb1+ {[%emt 0:00:54]} 29. Ke2 {[%emt 0:00:05]} Ra8 {[%emt 0:00:15]} 30. Rxg7 {[%emt 0:00:28]} Ra2+ {[%emt 0:00:10]} 31. Kf3 {[%emt 0:00:02]} b5 {[%emt 0:00:17]} 32. Rh7+ {[%emt 0:00:02]} Kg8 {[%emt 0:00:01]} 33. Rhg7+ {[%emt 0:00:02]} Kh8 {[%emt 0:00:16]} 34. Rh7+ {[%emt 0:00:03]} Kg8 {[%emt 0:00:01]} 35. Rhg7+ {[%emt 0:00:20]} Kh8 {[%emt 0:00:01]} 36. Rh7+ {[%emt 0:00:03]} Kg8 {[%emt 0:00:01]} 1/2-1/2

[Event "NOR-ch Youth 2019"]
[Site "Skien"]
[Date "2019.11.08"]
[Round "2.18"]
[White "Strand, Vetle Bjorge"]
[Black "Nilsen, Henrik Lauvsnes"]
[Result "1-0"]
[ECO "D37"]
[WhiteElo "1695"]
[BlackElo "1169"]
[Annotator "NA RC"]
[PlyCount "203"]
[EventDate "2019.11.08"]
[EventType "swiss"]
[EventCountry "NOR"]
[SourceTitle "playchess.com"]
[Source "ChessBase"]
[SourceQuality "1"]
[TimeControl "2400+10"]

1. d4 {[%emt 0:00:00]} d5 {[%emt 0:00:00]} 2. c4 {[%emt 0:00:00]} e6 {[%emt 0:00:02]} 3. Nf3 {[%emt 0:00:00]} Nf6 {[%emt 0:00:31]} 4. Nc3 {[%emt 0:00:00]} Nbd7 {[%emt 0:02:00]} 5. Bf4 {[%emt 0:00:04]} c6 {[%emt 0:00:20]} 6. e3 {[%emt 0:00:13]} Bb4 {[%emt 0:00:19]} 7. Qc2 {[%emt 0:00:17]} O-O {[%emt 0:00:39]} 8. Bd3 {[%emt 0:00:23]} Bxc3+ {[%emt 0:01:49]} 9. Qxc3 {[%emt 0:00:12]} h6 {[%emt 0:01:54]} 10. h3 {[%emt 0:01:58]} dxc4 {[%emt 0:02:11]} 11. Bxc4 {[%emt 0:02:42]} Nb6 {[%emt 0:00:02]} 12. Qd3 {[%emt 0:10:11]} Qe7 {[%emt 0:04:04]} 13. O-O {[%emt 0:00:53]} Nbd5 {[%emt 0:01:38]} 14. Bh2 {[%emt 0:02:07]} Bd7 {[%emt 0:08:21]} 15. a3 {[%emt 0:01:05]} c5 {[%emt 0:01:55]} 16. Bxd5 {[%emt 0:03:23]} Nxd5 {[%emt 0:00:46]} 17. dxc5 {[%emt 0:00:12]} Qxc5 {[%emt 0:00:08]} 18. e4 {[%emt 0:00:35]} Bb5 {[%emt 0:00:25]} 19. Rfc1 {[%emt 0:03:24]} Qxc1+ {[%emt 0:01:24]} 20. Rxc1 {[%emt 0:00:24]} Bxd3 {[%emt 0:00:02]} 21. exd5 {[%emt 0:00:01]} exd5 {[%emt 0:00:09]} 22. Be5 {[%emt 0:00:59]} Rac8 {[%emt 0:01:40]} 23. Bc3 {[%emt 0:00:38]} f6 {[%emt 0:01:30]} 24. Nd4 {[%emt 0:02:29]} a6 {[%emt 0:00:57]} 25. Rd1 {[%emt 0:00:36]} Bg6 {[%emt 0:00:58]} 26. Ne6 {[%emt 0:01:07]} Rfe8 {[%emt 0:00:13]} 27. Nf4 {[%emt 0:00:06]} Bf7 {[%emt 0:00:02]} 28. Nxd5 {[%emt 0:02:59]} Rcd8 {[%emt 0:00:28]} 29. Ne3 {[%emt 0:00:10]} Rxd1+ {[%emt 0:00:14]} 30. Nxd1 {[%emt 0:00:01]} Kh7 {[%emt 0:01:48]} 31. Ne3 {[%emt 0:00:03]} Kg6 {[%emt 0:01:00]} 32. Kf1 {[%emt 0:00:04]} h5 {[%emt 0:01:57]} 33. h4 {[%emt 0:00:17]} Re4 {[%emt 0:00:27]} 34. g3 {[%emt 0:00:15]} f5 {[%emt 0:00:26]} 35. Kg2 {[%emt 0:02:26]} f4 {[%emt 0:00:37]} 36. Kf3 {[%emt 0:00:03]} fxe3 {[%emt 0:00:28]} 37. fxe3 {[%emt 0:00:43]} Bd5 {[%emt 0:00:07]} 38. Kf2 {[%emt 0:00:15]} Kh6 {[%emt 0:00:05]} 39. Bd2 {[%emt 0:00:17]} g5 {[%emt 0:00:23]} 40. hxg5+ {[%emt 0:00:15]} Kxg5 {[%emt 0:00:05]} 41. Kf3 {[%emt 0:00:06]} Rb4+ {[%emt 0:00:18]} 42. e4+ {[%emt 0:00:02]} Kg6 {[%emt 0:00:16]} 43. Bxb4 {[%emt 0:00:04]} Be6 {[%emt 0:00:14]} 44. Kf4 {[%emt 0:00:05]} Bg4 {[%emt 0:00:08]} 45. Ke5 {[%emt 0:00:30]} Kf7 {[%emt 0:00:19]} 46. Kd6 {[%emt 0:00:15]} Bf3 {[%emt 0:00:18]} 47. e5 {[%emt 0:00:03]} Bc6 {[%emt 0:00:02]} 48. e6+ {[%emt 0:00:10]} Kf8 {[%emt 0:02:18]} 49. Bc3 {[%emt 0:01:38]} Ke8 {[%emt 0:00:23]} 50. Bf6 {[%emt 0:00:49]} Bf3 {[%emt 0:00:59]} 51. Kc7 {[%emt 0:01:08]} Bc6 {[%emt 0:00:13]} 52. Kd6 {[%emt 0:01:14]} Bf3 {[%emt 0:00:05]} 53. Ke5 {[%emt 0:00:02]} Bc6 {[%emt 0:00:04]} 54. Kf5 {[%emt 0:00:13]} Bd5 {[%emt 0:00:11]} 55. Bg5 {[%emt 0:00:40]} Bc6 {[%emt 0:00:24]} 56. Kg6 {[%emt 0:00:12]} Bd5 {[%emt 0:00:02]} 57. Kf6 {[%emt 0:00:14]} Bc6 {[%emt 0:00:09]} 58. Bf4 {[%emt 0:00:07]} Bd5 {[%emt 0:00:11]} 59. Bd6 {[%emt 0:00:01]} Bf3 {[%emt 0:00:10]} 60. a4 {[%emt 0:00:20]} Bd5 {[%emt 0:00:26]} 61. a5 {[%emt 0:00:01]} Bc6 {[%emt 0:00:07]} 62. Ke5 {[%emt 0:00:01]} Kd8 {[%emt 0:00:23]} 63. Kd4 {[%emt 0:00:02]} Bf3 {[%emt 0:00:16]} 64. Kc5 {[%emt 0:00:13]} Bc6 {[%emt 0:00:02]} 65. b4 {[%emt 0:00:03]} Ba4 {[%emt 0:00:09]} 66. Kc4 {[%emt 0:00:34]} Bb5+ {[%emt 0:00:03]} 67. Kc5 {[%emt 0:00:01]} Bc6 {[%emt 0:00:01]} 68. Kd4 {[%emt 0:00:21]} Bb5 {[%emt 0:00:06]} 69. Ke5 {[%emt 0:00:01]} Bc6 {[%emt 0:00:11]} 70. Kf6 {[%emt 0:00:02]} Be8 {[%emt 0:00:08]} 71. Bc5 {[%emt 0:00:17]} Bc6 {[%emt 0:00:17]} 72. Kf7 {[%emt 0:00:06]} Be8+ {[%emt 0:00:02]} 73. Kf8 {[%emt 0:00:03]} Bc6 {[%emt 0:00:09]} 74. Bb6+ {[%emt 0:00:06]} Kc8 {[%emt 0:00:16]} 75. e7 {[%emt 0:00:03]} Bd7 {[%emt 0:00:10]} 76. e8=Q+ {[%emt 0:00:02]} Bxe8 {[%emt 0:00:04]} 77. Kxe8 {[%emt 0:00:01]} Kb8 {[%emt 0:00:01]} 78. Kf7 {[%emt 0:00:04]} Kc8 {[%emt 0:00:07]} 79. Kg6 {[%emt 0:00:01]} Kd7 {[%emt 0:00:01]} 80. Kxh5 {[%emt 0:00:02]} Kc6 {[%emt 0:00:00]} 81. g4 {[%emt 0:00:02]} Kb5 {[%emt 0:00:08]} 82. Bc5 {[%emt 0:00:02]} Kc6 {[%emt 0:00:01]} 83. g5 {[%emt 0:00:01]} Kd7 {[%emt 0:00:02]} 84. g6 {[%emt 0:00:02]} Ke8 {[%emt 0:00:02]} 85. g7 {[%emt 0:00:02]} Kf7 {[%emt 0:00:01]} 86. Bf8 {[%emt 0:00:01]} Kg8 {[%emt 0:00:06]} 87. Kg5 {[%emt 0:00:01]} Kf7 {[%emt 0:00:02]} 88. Kf5 {[%emt 0:00:01]} Kg8 {[%emt 0:00:02]} 89. Ke5 {[%emt 0:00:02]} Kf7 {[%emt 0:00:03]} 90. Kd6 {[%emt 0:00:00]} Kg8 {[%emt 0:00:01]} 91. Kc7 {[%emt 0:00:01]} Kf7 {[%emt 0:00:02]} 92. Kxb7 {[%emt 0:00:01]} Kg8 {[%emt 0:00:02]} 93. Kxa6 {[%emt 0:00:01]} Kf7 {[%emt 0:00:01]} 94. b5 {[%emt 0:00:01]} Kg8 {[%emt 0:00:04]} 95. b6 {[%emt 0:00:01]} Kh7 {[%emt 0:00:03]} 96. b7 {[%emt 0:00:01]} Kg8 {[%emt 0:00:01]} 97. b8=Q {[%emt 0:00:02]} Kh7 {[%emt 0:00:05]} 98. Qh2+ {[%emt 0:00:01]} Kg8 {[%emt 0:00:06]} 99. Qh8+ {[%emt 0:00:02]} Kf7 {[%emt 0:00:01]} 100. g8=Q+ {[%emt 0:00:03]} Ke8 {[%emt 0:00:04]} 101. Qe6+ {[%emt 0:00:08]} Kd8 {[%emt 0:00:03]} 102. Bd6# {[%emt 0:00:03]} 1-0